Cogmind - Beta 16 @@@ ROGUE MODE // 2025.12.06 @ 19:38:35 Player: Mozco Result: Destroyed by 8R-AWN with 8R-AWN's Boregun Performance ------------- Evolutions (1) 500 Regions Visited (5) 1000 Robots Destroyed (120) 600 Value Destroyed (2757) 2757 Prototype IDs (28) 560 Alien Tech Used (0) 0 Bonus (551) 551 TOTAL SCORE: 5968 Bonus ------- High Alert Combat Kills 353 Aligned with FarCom 300 Friendly Fire -102 Cogmind --------- Core Integrity 0/400 Matter 13/300 Energy 25/100 System Corruption 3% Temperature Hot (267) Movement Core (1450) Ox28 Location -9/Exiles Parts ------- > --- POWER (1) -------- (None) > --- PROPULSION (4) --- (None) > --- UTILITY (2) ------ Huge Storage Unit > --- WEAPON (2) ------- Improved Medium Laser Advanced Beam Cannon > --- INVENTORY (25) --- High-capacity Matter Pod (0) Hardlight Generator Hardlight Generator Hacking Suite Skeleton Box Improved Medium Laser Improved Medium Laser Improved Medium Laser Autogun Autogun Rocket Launcher Rocket Launcher Improved Datajack Peak State ------------ > --- POWER ------------ Heavy Ion Engine > --- PROPULSION ------- Light Treads Light Treads Light Treads Light Treads > --- UTILITY ---------- Huge Storage Unit Hardlight Generator > --- WEAPON ----------- Improved Medium Laser Autogun > --- INVENTORY -------- Improved Ion Engine Light Treads Light Treads Light Treads Light Treads Light Treads High-capacity Matter Pod Medium Armor Plating Medium Armor Plating Medium Armor Plating Medium Armor Plating Hardened Light Armor Plating Hardlight Generator Hacking Suite Improved Medium Laser Improved Medium Laser Improved Medium Laser Particle Cannon Particle Cannon Autogun Autogun Autogun Rocket Launcher Rocket Launcher Improved Datajack [Rating: 21] Favorites ----------- Power Heavy Ion Engine Engine Heavy Ion Engine Propulsion Light Treads Treads Light Treads Utility Huge Storage Unit Device Improved Heat Sink Storage Huge Storage Unit Protection Medium Armor Plating Weapon Autogun Energy Gun Medium Laser Energy Cannon Particle Cannon Ballistic Gun Autogun Launcher Grenade Launcher Build | -11 -10 -10 -9 -9 -9 ------- Run | Yrd Mat Min Mat Min Exi Slots Evolved 2 | . . . 2 . . Power . | . . . . . . Propulsion 2 | . . . 2 . . Utility . | . . . . . . Weapon . | . . . . . . Parts Attached 66 | 6 10 1 36 1 12 Power 7 | 1 2 . 3 . 1 Engine 7 | 1 2 . 3 . 1 Core . | . . . . . . Reactor . | . . . . . . Propulsion 21 | 2 1 . 15 1 2 Treads 21 | 2 1 . 15 1 2 Leg . | . . . . . . Wheel . | . . . . . . Hover . | . . . . . . Flight . | . . . . . . Utility 16 | 1 6 . 5 . 4 Device 5 | . 3 . 2 . . Storage 4 | 1 2 . 1 . . Processor . | . . . . . . Hackware . | . . . . . . Protection 7 | . 1 . 2 . 4 Artifact . | . . . . . . Weapon 22 | 2 1 1 13 . 5 Energy Gun 7 | 2 . . 5 . . Energy Cannon 7 | . 1 . 3 . 3 Ballistic Gun 4 | . . . 2 . 2 Ballistic Cannon . | . . . . . . Launcher 4 | . . 1 3 . . Special Weapon . | . . . . . . Impact Weapon . | . . . . . . Slashing Weapon . | . . . . . . Piercing Weapon . | . . . . . . Special Melee Weapon . | . . . . . . Unidentified Prototypes 3 | . . . 3 . . Parts Lost 23 | . 2 . 3 . 18 Power 3 | . 1 . . . 2 Propulsion 9 | . . . 1 . 8 Utility 4 | . . . . . 4 Weapon 7 | . 1 . 2 . 4 Highest Loss Streak 10 | . 1 . 1 . 10 To Critical Strikes 13 | . . . . . 13 Average Backups 22 | 1 18 25 24 25 21 Power . | . . 1 1 1 . Propulsion 3 | . 2 4 4 4 2 Utility 6 | . 5 8 7 8 6 Weapon 10 | . 9 11 10 11 10 Tool/Special . | . . . . . . Unused Backups 20 | . . 1 11 . 8 Power 1 | . . . 1 . . Propulsion . | . . . . . . Utility 7 | . . . 4 . 3 Weapon 9 | . . 1 5 . 3 Tool/Special 3 | . . . 1 . 2 Average Slot Usage (%) 98 | . 97 100 99 100 92 Engine 11 | . 11 14 11 11 9 Treads 36 | . 27 28 43 44 38 Device 8 | . 10 14 7 . . Storage 12 | . 14 14 11 11 11 Protection 3 | . 2 . 3 11 10 Energy Gun 9 | . 19 8 6 . . Energy Cannon 7 | . 8 14 4 . 3 Ballistic Gun 6 | . . . 9 22 17 Launcher 1 | . . 5 1 . . Peak Build Rating 21 | 6 13 13 21 19 20 Average Rating 15 | 4 10 13 18 19 18 On Entrance 11 | . 6 13 13 19 19 Avg Prop Armor Cover (%) . | . . . . . . Naked Turns . | . . . . . . Heaviest Build 102 | 11 92 93 102 101 101 Greatest Support 80 | 40 40 40 80 80 80 Greatest Overweight (x) 2 | . 2 2 1 1 1 Average Overweight (x) 1 | . 1 2 1 1 1 Largest Inventory Capacity 25 | 8 25 25 25 25 25 Average Capacity 24 | 6 24 25 25 25 25 Most Carried 25 | 2 25 25 25 25 25 Average Carried 22 | 1 18 24 24 25 21 Final Capacity 25 | 8 25 25 25 25 25 Final Carried 25 | 2 25 25 25 25 13 Class Distribution -------------------- 52% | Scavenger-Mutant 47% | Mutant Dominant Class ---------------- Mutant | -10/Materials Mutant | -10/Mines Scavenger-Mutant | -9/Materials Scavenger-Mutant | -9/Mines Scavenger-Mutant | -9/Exiles Resources | -11 -10 -10 -9 -9 -9 ----------- Run | Yrd Mat Min Mat Min Exi Matter Collected 2644 | 221 354 62 1739 59 209 Remotely . | . . . . . . Salvage Created 3573 | 18 838 74 2477 139 27 Parts 236 | 2 39 14 177 4 . Haulers Intercepted 8 | . 2 . 6 . . Recyclers Shooed 6 | . 3 . 2 1 . Parts Field Recycled . | . . . . . . Retrieved Matter . | . . . . . . Parts Self-Destructed . | . . . . . . Prevented . | . . . . . . Parts Restored . | . . . . . . Kills | -11 -10 -10 -9 -9 -9 ------- Run | Yrd Mat Min Mat Min Exi Combat Hostiles Destroyed 81 | . 15 5 51 3 7 Guns 30 | . 8 . 18 3 1 Cannons 18 | . 6 1 11 . . AOE 32 | . . 4 22 . 6 Classes Destroyed 15 | 1 6 1 6 . 1 Worker 10 | 1 . 1 8 . . Builder 13 | . 1 1 11 . . Tunneler 1 | . . . 1 . . Hauler 8 | . 2 . 6 . . Recycler 5 | . 1 . 4 . . Mechanic 3 | . . . 3 . . Operator 1 | . 1 . . . . Watcher 5 | . 1 . 4 . . Swarmer 13 | . . 3 10 . . Grunt 42 | . 15 2 23 2 . Brawler 6 | . . . 5 1 . Duelist 2 | . . . 2 . . Protector 1 | . . . 1 . . Sentry 10 | . . . 10 . . Assembled 7 | . . . . . 7 Best Kill Streak 9 | 1 3 3 9 3 7 Combat Bots Only 7 | . 3 3 7 3 7 Max Kills in Single Turn 3 | 1 1 2 3 1 3 Gunslinging . | . . . . . . Exploded 3 | . . 2 3 . 3 Melee . | . . . . . . Uniques/NPCs Destroyed . | . . . . . . Combat | -11 -10 -10 -9 -9 -9 -------- Run | Yrd Mat Min Mat Min Exi Hostile Shots Fired 480 | . 82 21 204 9 164 Missed 127 | . 23 8 65 . 31 Hits 353 | . 59 13 139 9 133 Melee 6 | . . . 3 . 3 Projectile 347 | . 59 13 136 9 130 Critical Strikes 69 | . 1 . 4 . 64 Damage Taken 5132 | . 721 138 1791 101 2381 Core 572 | . 159 . 135 12 266 Absorbed by Shields 84 | . . . 84 . . Regen/Repaired (Parts) 302 | . 139 . 163 . . Core Remaining (%) 68 | 100 . 36 . . . Volleys Fired 336 | 1 57 10 196 9 63 Largest 2 | 2 2 1 2 2 2 Hottest 136 | 90 118 68 136 46 136 Shots Fired 624 | 2 113 10 359 19 121 Gun 434 | 2 91 . 245 19 77 Cannon 143 | . 22 4 78 . 39 Launcher 47 | . . 6 36 . 5 Special . | . . . . . . Kinetic 245 | . . . 152 19 74 Thermal 332 | 2 113 4 171 . 42 Explosive 47 | . . 6 36 . 5 Electromagnetic . | . . . . . . Robot Hit Streak 19 | 1 11 3 19 5 11 Robot Miss Streak 4 | 1 3 2 4 2 4 Penetration Max . | . . . . . . Secondary Targets 4 | . 1 . 2 . 1 Max Gunslinging Chain 1 | . 1 . 1 . 1 Shots Hit Robots 378 | 1 69 3 213 11 81 Core Hits 195 | 1 35 8 125 5 21 Critical Kills 2 | . . . 2 . . Critical Parts Destroyed 1 | . . . 1 . . Critical Strikes 15 | . 8 . 7 . . Burn 12 | . 8 . 4 . . Meltdown 1 | . . . 1 . . Destroy 2 | . . . 2 . . Melee Attacks . | . . . . . . Impact . | . . . . . . Slashing . | . . . . . . Piercing . | . . . . . . Sneak Attacks . | . . . . . . Combat Hostiles . | . . . . . . Follow-up Attacks . | . . . . . . Damage Inflicted 9742 | 13 1019 527 6186 166 1831 Guns 4239 | 13 681 . 2551 166 828 Cannons 1907 | . 313 61 1002 . 531 Explosions 3453 | . . 375 2606 . 472 Melee . | . . . . . . Ramming 143 | . 25 91 27 . . Kinetic 2416 | . . . 1455 166 795 Thermal 3833 | 13 994 164 2098 . 564 Explosive 3350 | . . 272 2606 . 472 Electromagnetic . | . . . . . . Impact . | . . . . . . Slashing . | . . . . . . Piercing . | . . . . . . Highest Corruption 3 | . . . 3 3 3 Average Corruption 2 | . . . 2 3 3 Corruption Purged . | . . . . . . Corruption Blocked . | . . . . . . Effects 86 | . . . 65 6 15 Message Errors 25 | . . . 18 2 5 Matter Fused 21 | . . . 18 . 3 Heat Flow Errors 8 | . . . 6 . 2 Energy Discharges 10 | . . . 7 2 1 Parts Rejected 2 | . . . 1 . 1 Parts Fused 1 | . . . 1 . . Data Loss (minor) 4 | . . . 3 . 1 Data Loss (major) 4 | . . . 3 1 . Misfires 6 | . . . 3 1 2 Alerts 4 | . . . 4 . . Weapon Failures 1 | . . . 1 . . Overload Shots . | . . . . . . Overflow Damage 87 | . . . 51 . 36 Projectiles 1 | . . . 1 . . Explosions 86 | . . . 50 . 36 Melee . | . . . . . . Knockbacks 2 | . . 1 1 . . Impact 2 | . . 1 1 . . Kinetic . | . . . . . . Secondary . | . . . . . . Self-Inflicted Damage 233 | . . 33 155 . 45 Shots 10 | . . 1 8 . 1 Rammed 18 | . 3 13 2 . . Targets Rammed 20 | . 4 14 2 . . Kicked . | . . . . . . Crushed 2 | . 1 1 . . . Highest Temperature 472 | 30 345 . 276 72 472 Average Temperature 85 | 20 90 . 52 35 167 Received Heat Transfer 1036 | . 405 18 559 54 . Effects 9 | . 1 . . . 8 Shutdowns 1 | . 1 . . . . Energy Bleed 1 | . . . . . 1 Interference 4 | . . . . . 4 Matter Decay 2 | . . . . . 2 Damage (minor) 1 | . . . . . 1 Siege Activations . | . . . . . . Martial Activations . | . . . . . . Shielding Activations . | . . . . . . Robots Disrupted . | . . . . . . Combat Hostiles . | . . . . . . Robots Corrupted . | . . . . . . Combat Hostiles . | . . . . . . Parts Fried . | . . . . . . Impact Corruptions . | . . . . . . Robots Melted 2 | . 1 . 1 . . Combat Hostiles 1 | . 1 . . . . Parts Melted 13 | . 7 . 6 . . Heat Transferred 7896 | 37 2980 261 4366 . 252 Parts Sabotaged . | . . . . . . Parts Stolen . | . . . . . . Parts Stripped . | . . . . . . Power Chain Reactions . | . . . . . . Alert | -11 -10 -10 -9 -9 -9 ------- Run | Yrd Mat Min Mat Min Exi Maximum Alert Level 3 | . . . 3 2 . Low Security (%) 55 | 100 100 100 18 . . Level 1 10 | . . . 16 63 . Level 2 19 | . . . 36 36 . Level 3 14 | . . . 28 . . Level 4 . | . . . . . . Level 5 . | . . . . . . High Security . | . . . . . . Max Security . | . . . . . . Sterilizations 1 | . . . 1 . . Peak Influence 1044 | 5 138 146 1044 436 . Initial 406 | . 3 7 39 406 . Average 294 | . 47 28 519 384 . Influence Increases 2615 | 5 494 241 1805 70 . Destroy 0b10 Robot/C 1460 | . 300 100 1000 60 . Destroy 0b10 Robot/NC 235 | 5 30 10 190 . . Destroy Leader 356 | . 66 20 260 10 . Successful Hack 38 | . 7 6 25 . . Select Force Hacks 90 | . 60 . 30 . . Disable Machine 90 | . . 60 30 . . Destroy Structure 241 | . 1 45 195 . . Lose Combat Pursuer 105 | . 30 . 75 . . Influence Decreases 2615 | . 479 159 863 798 316 Entered New Map 1032 | . 2 13 63 638 316 Time Decay 1533 | . 457 146 770 160 . Lost Part 50 | . 20 . 30 . . Squads Dispatched 14 | . 4 . 10 . . Investigation 6 | . 3 . 3 . . Extermination . | . . . . . . Reinforcement 4 | . 1 . 3 . . Assault 4 | . . . 4 . . Garrison . | . . . . . . Intercept . | . . . . . . Searches Triggered . | . . . . . . Construction Impeded . | . . . . . . Haulers Reinforced . | . . . . . . Active Scanning Responses . | . . . . . . Cargo Convoy Interrupts . | . . . . . . Stealth | -11 -10 -10 -9 -9 -9 --------- Run | Yrd Mat Min Mat Min Exi Distress Signals 4 | . . . 4 . . Communications Jammed . | . . . . . . Distress Signals . | . . . . . . Times Spotted 129 | . 27 5 86 3 8 Peak Tracking Total 9 | . 4 3 6 3 9 Tactical Retreats 6 | . 2 . 4 . . Traps | -11 -10 -10 -9 -9 -9 ------- Run | Yrd Mat Min Mat Min Exi Traps Triggered 4 | . 1 . 3 . . Indirectly . | . . . . . . Trap Hack Attempts . | . . . . . . Triggered . | . . . . . . Disarmed . | . . . . . . Reprogrammed . | . . . . . . Reused . | . . . . . . Traps Extracted . | . . . . . . Installed . | . . . . . . Triggered . | . . . . . . Machines | -11 -10 -10 -9 -9 -9 ---------- Run | Yrd Mat Min Mat Min Exi Machines Disabled 8 | . . 4 2 . 2 Max in Single Turn 4 | . . 4 1 . 2 Machines Repaired . | . . . . . . Machines Dismantled . | . . . . . . Machines Sabotaged . | . . . . . . Overloaded Fab Kills . | . . . . . . Hacking | -11 -10 -10 -9 -9 -9 --------- Run | Yrd Mat Min Mat Min Exi Machines Accessed 19 | . 6 1 11 . 1 Terminals 11 | . 3 1 7 . . Fabricators . | . . . . . . Repair Stations 3 | . 1 . 2 . . Recycling Units 3 | . 2 . 1 . . Scanalyzers 1 | . . . 1 . . Garrison Access . | . . . . . . Total Hacks 55 | . 14 4 36 . 1 Successful 34 | . 8 1 24 . 1 Failed 19 | . 5 3 11 . . Catastrophic 2 | . 1 . 1 . . Database Lockouts 2 | . 1 . 1 . . Manual 36 | . 13 4 18 . 1 Terminals 33 | . 9 4 20 . . Fabricators . | . . . . . . Repair Stations 11 | . 2 . 9 . . Recycling Units 6 | . 3 . 3 . . Scanalyzers 4 | . . . 4 . . Garrison Access . | . . . . . . Terminal Hacks 10 | . 2 1 6 . 1 Robot Analysis 4 | . 2 1 1 . . Prototype ID Bank 1 | . . . 1 . . Alert Level 1 | . . . 1 . . Locate Traps 1 | . . . 1 . . Dispatch Records 1 | . . . 1 . . Zone Layout 1 | . . . 1 . . Proto ID Catalog 1 | . . . . . 1 Fabricator Hacks . | . . . . . . Repair Station Hacks 7 | . 2 . 5 . . Scan Component 4 | . 1 . 3 . . Repair 3 | . 1 . 2 . . Recycling Unit Hacks . | . . . . . . Scanalyzer 4 | . . . 4 . . Insert Component 2 | . . . 2 . . Analyze 2 | . . . 2 . . Garrison Access Hacks . | . . . . . . Unauthorized Hacks 13 | . 4 . 9 . . Terminals 10 | . 2 . 8 . . Track 4 | . . . 4 . . Botnet 3 | . 2 . 1 . . Disrupt 3 | . . . 3 . . Fabricators . | . . . . . . Repair Stations . | . . . . . . Recycling Units 3 | . 2 . 1 . . Tunnel 3 | . 2 . 1 . . Scanalyzers . | . . . . . . Garrison Access . | . . . . . . Data Cores Recovered . | . . . . . . Used . | . . . . . . Hacking Detections 12 | . 3 1 8 . . Full Trace Events 5 | . 1 1 3 . . Feedback Events . | . . . . . . Feedback Blocked . | . . . . . . Robot Schematics Acquired . | . . . . . . Robots Built . | . . . . . . Authchips . | . . . . . . Time . | . . . . . . Total Robot Build Rating . | . . . . . . Part Schematics Acquired 2 | . . . 2 . . Parts Built . | . . . . . . Authchips . | . . . . . . Time . | . . . . . . Total Part Build Rating . | . . . . . . Part Studies Acquired . | . . . . . . Parts Repaired 3 | . 1 . 2 . . Time 78 | . 26 . 52 . . Parts Recycled . | . . . . . . Recycled Matter . | . . . . . . Retrieved Matter . | . . . . . . Retrieved Components . | . . . . . . Parts Scanalyzed 2 | . . . 2 . . Part Schematics Acquired 2 | . . . 2 . . Parts Damaged . | . . . . . . Bothacking | -11 -10 -10 -9 -9 -9 ------------ Run | Yrd Mat Min Mat Min Exi Used RIF Installer . | . . . . . . Robots Hacked . | . . . . . . Non-combat . | . . . . . . Combat . | . . . . . . Robot Hacks Applied . | . . . . . . Relay Couplers Released . | . . . . . . Fabnet Peak Effective % . | . . . . . . Robots Rewired . | . . . . . . Allies Hacked . | . . . . . . Hacks Repelled . | . . . . . . Allies | -11 -10 -10 -9 -9 -9 -------- Run | Yrd Mat Min Mat Min Exi Total Allies . | . . . . . . Largest Group . | . . . . . . Highest-Rated Group . | . . . . . . Highest-Rated Ally . | . . . . . . Total Orders . | . . . . . . Ally Attacks . | . . . . . . Total Damage . | . . . . . . Kills . | . . . . . . Allies Corrupted . | . . . . . . Allies Melted . | . . . . . . Intel | -11 -10 -10 -9 -9 -9 ------- Run | Yrd Mat Min Mat Min Exi Active Infowar (turns) 921 | . 921 . . . . Structural 921 | . 921 . . . . Robot Analysis Total 4 | . 2 1 1 . . Derelict Logs Recovered 1 | . . 1 . . . Drone Launches . | . . . . . . Drone Recoveries . | . . . . . . Exploration | -11 -10 -10 -9 -9 -9 ------------- Run | Yrd Mat Min Mat Min Exi Turns Passed 9671 | 104 2567 1476 4578 322 624 Spaces Moved 3147 | 59 736 441 1622 125 164 Core 3 | 3 . . . . . Treads 3144 | 56 736 441 1622 125 164 Legs . | . . . . . . Wheels . | . . . . . . Hover . | . . . . . . Flight . | . . . . . . Fastest Speed 50 | 50 160 320 240 240 240 Average Speed 266 | 154 312 320 240 240 240 Slowest Speed 320 | 160 320 320 240 240 240 Overloaded Moves . | . . . . . . Propulsion Burnouts . | . . . . . . Robots Hopped . | . . . . . . Potential Cave-ins . | . . . . . . Cave-ins Triggered . | . . . . . . Exploration Rate (%) 57 | 4 93 90 97 21 42 Regions Visited 5 Branch Regions 3 Pre-discovered Areas 5 | . 2 1 1 1 . Known Exits Taken . | . . . . . . Unknown Exits Taken 5 | 1 1 1 1 1 . Scrap Searched 1 | . . 1 . . . Spaces Dug 20 | . . 9 . . 11 Terrain Destroyed 277 | . . 46 204 . 27 Melee . | . . . . . . Projectile 6 | . . . . . 6 AOE 271 | . . 46 204 . 21 Terrain Rammed . | . . . . . . Walls Destroyed . | . . . . . . Machines Disabled . | . . . . . . Actions | -11 -10 -10 -9 -9 -9 --------- Run | Yrd Mat Min Mat Min Exi Total 3831 | 67 881 467 1992 135 289 Wait 123 | . 47 . 36 . 40 Move 3142 | 58 735 440 1621 124 164 Hop . | . . . . . . Pick Up 54 | 2 22 1 26 . 3 Fast Attach 22 | 6 3 . 13 . . Attach 23 | . 2 . 7 . 14 Detach 1 | . 1 . . . . Swap 56 | . 7 1 44 1 3 Drop 54 | . 3 1 47 1 2 Fire 336 | 1 57 10 196 9 63 Melee . | . . . . . . Ram . | . . . . . . Kick . | . . . . . . Crush 20 | . 4 14 2 . . Escape Stasis . | . . . . . . Rewire . | . . . . . . Trap . | . . . . . . Miscellaneous . | . . . . . . Route ------- -11/Scrapyard -10/Materials (discovered 4 exits: *Mat x3 / *Min) -10/Mines (discovered 2 exits: *Mat x2) -9/Materials (discovered 4 exits: [*Mat x3] / [*Min]) -9/Mines (discovered 2 exits: [*Mat] / *Exi) -9/Exiles History --------- Turn | Location | Event 20 | -11/Scrapyard | Discovered new exit (range 15) 105 | -11/Scrapyard | Entered Materials 106 | -10/Materials | Met a group of wandering Federalists 146 | -10/Materials | Discovered new exit (range 12) 317 | -10/Materials | Build established: Mutant 563 | -10/Materials | Central database locked down 627 | -10/Materials | Discovered new exit (range 4) 836 | -10/Materials | Discovered new exit (range 3) 1493 | -10/Materials | Core integrity fell below 50% 1524 | -10/Materials | Discovered new exit (range 5) 2365 | -10/Materials | Repaired Lgt. Treads 2672 | -10/Materials | Entered Mines 2698 | -10/Mines | Learned location of Zion (-6) 2725 | -10/Mines | Met a Derelict bent on vengeance 3164 | -10/Mines | Discovered new exit (range 14) 3602 | -10/Mines | Discovered new exit (range 7) 4148 | -10/Mines | Entered Materials 4148 | -9/Materials | Evolved 2 slots: Propulsion x2 4666 | -9/Materials | Build established: Scavenger-Mutant 4809 | -9/Materials | Discovered new exit (range 16) 4845 | -9/Materials | Central database locked down 5164 | -9/Materials | Discovered new exit (range 11) 5182 | -9/Materials | Repaired Lgt. Treads 5216 | -9/Materials | Repaired Lgt. Treads 5781 | -9/Materials | Destroyed 7 combat bots 6081 | -9/Materials | Discovered new exit (range 16) 6148 | -9/Materials | First assault squad dispatched 7729 | -9/Materials | Discovered new exit (range 16) 8643 | -9/Materials | Sterilization system engaged 8643 | -9/Materials | Non-combat units ordered to evacuate 8726 | -9/Materials | Entered Mines 8727 | -9/Mines | Learned location of Storage (-7) 9010 | -9/Mines | Discovered new exit (range 9) 9036 | -9/Mines | Deemed a non-threat by the Exiles lab entrance 9036 | -9/Mines | Discovered new exit (range 5) 9048 | -9/Mines | Entered Exiles 9108 | -9/Exiles | Met 8R-AWN 9152 | -9/Exiles | Met EX-HEX 9224 | -9/Exiles | Met EX-BIN 9257 | -9/Exiles | Aligned with FarCom system 9260 | -9/Exiles | Given EX-Vault access code 9315 | -9/Exiles | Opened EX-Vault 9333 | -9/Exiles | Found Skeleton Box 9380 | -9/Exiles | Warned to stay clear of 0b10 Research branches 9407 | -9/Exiles | Attacked by the Exiles 9456 | -9/Exiles | Destroyed 7 combat bots 9474 | -9/Exiles | Core integrity fell below 50% 9553 | -9/Exiles | Lost 10 parts (1p4n3u2w) 9639 | -9/Exiles | Core integrity fell below 20% 9672 | -9/Exiles | Destroyed by 8R-AWN with 8R-AWN's Boregun Last Messages --------------- 09629_ Penetrated by HV Slug. 09629_ Critical hit (Destroy). 09629_ Adv. Beam Cannon destroyed. 09634_ Penetrated by HV Slug. 09634_ Critical hit (Destroy). 09637_ The unstable cave ceiling collapses. 09638_ HV Slug penetrates Machine. 09638_ Penetrated by HV Slug. 09639_ The unstable cave ceiling collapses. 09642_ Penetrated by HV Slug. 09646_ Overheating: Matter decay (-1). 09647_ Penetrated by HV Slug. 09647_ Critical hit (Destroy). 09647_ Adv. Beam Cannon destroyed. 09647_ Penetrated by HV Slug. 09651_ Hrd. Light Armor Plating destroyed. 09651_ Penetrated by HV Slug. 09659_ Destroyed Prototype Protection. 09659_ HV Slug penetrates Machine. 09659_ Penetrated by HV Slug. Map ----- +----------------------------------------------------+ | ??????????????????????# ## """?????????????? | | ????????????????####??# #??"""""?????????????? | | ???????????????""""""?# #???###??????????????? | | ???????????????"""" ## #????????????????????? | | ??????????????#""X" #????????????????????? | | ??????????????#" #????????????????????? | | ??????????????#" ## #????????????????????? | | ??????????????#""""""?" #?#########??????????? | | ??????????????##"###?"" #?#"""""""#??????????? | | ?????????????????? ?#" #?#"""""""#??????????? | | ??????????????????# ##" #?#"""""""#??????????? | | ????????????? ???? #; ###"" """"#??????????? | | ????????????? ??## # """"#??????????? | | ??????????????" "?? ; """#??????????? | | ??????????????? ?? ; """#??????????? | | ???????????????? ?#; """#??????????? | | ????????????????? ##; """#??????????? | | ??????????????????# #" """#??????????? | | ??????????????????? #; """"??????????? | | ????????????????????# # """#??????????? | | ????????????????????##; "X" """"??????????? | | ????????????????????# """ #??????????? | | ????????????????????# """""""""#??????????? | | ????????????????????### #########??????????? | | ????????????????????## g ####???????????????? | | ?????????????????####"" @ #???????????????? | | ???????????????#""""" #???????????????? | | ???????????????""" " " ## ############?????? | | ?????????????" """ " ###"""""""""##???? | | ???????????? " " " """ """"##??? | | ?????????? "" " #??? | | ?????????? " """#??? | | ?????????? " "#??? | | ??????????? " "##?? | | ??????????? ""### | | ??????????? """ """# | | ???????????? ###### "# | | ???????????? ""#????? # # | | ????????????? """#??????######"" | | ?????????????????????????????#"""" | | ?????????????????????????????#"" | | ?????????????????????????????"""" | | ????????????????????????????? | | ??????????????????????????? | | ??????????????????????????? | | ?????????????????????????? | | ?????????????????????????? " | | ?????????????????????????? "" """ "" | | ??????????????????????????##""" " " ""#" "# | | ?????????????????????????????###""" """##"""""""## | +----------------------------------------------------+ Best States ------------- Heat Dissipation 42 Energy Generation 14 Energy Capacity 280 Matter Stores 300 Matter Capacity 300 Sight Range 16 Terrain Scan Density 10 Armor Coverage 225 Evasion (%) 40 Recoil Reduction 4 Item Schematics ----------------- Lgt. Treads | -9/Materials | Scanalyzed Hrd. Light Armor Plating | -9/Materials | Scanalyzed Robot Schematics ------------------ None Fabricated ------------ Nothing Repaired ---------- Lgt. Treads | 1% | -10/Materials Lgt. Treads | 32% | -9/Materials Lgt. Treads | 51% | -9/Materials Studied --------- None Alien Tech Used ----------------- None Achievements -------------- None Challenges ------------ None Game ------ Seed CloakFactorySubcomponent Manual? 0 Play Time 00:43:00 Cumulative 382.5 hours Start 2025.12.06 @ 18:37:53 End 2025.12.06 @ 19:38:35 Sessions 1 Manual Loads 0 Difficulty Rogue Special Mode None Game No. 392 Rogue 388 Adventurer 3 Explorer 1 Win Type - Total 5 Types 4/0/1/0/0/0/0/0/0/0 Lore% 85 Gallery% 80 Achievement% 67 Wizard Run 0 Options --------- Layout 0 ASCII 0 Keyboard 0 Movement Mouse Keybinds 0 Fullscreen 2 Font 18/SmallcapsGlow Map View 76x50 Zoom Use 0% Tactical HUD 1 Map Filters NONE Filters NONE Steam 1 RUN: 9d463ee7-a2ce-4610-8d54-a4b11ccfad8b